fUSD/lending_fUSD_20240319
["ID","MTS","AMOUNT","RATE_DAILY","PERIOD"]
[319507616,1710813032523,-6397.19421461,0.00015672,2]
[319507617,1710813032563,-14254.30349944,0.00015672,2]
[319507618,1710813032590,-4233.57815125,0.00015672,2]
[319507619,1710813032601,-67264.437385,0.00015672,2]
[319507620,1710813032612,-833.79793316,0.00015672,2]
[319507621,1710813032624,-580.7768,0.00015672,2]
[319507622,1710813032643,-8303.34998947,0.00015672,2]
[319507623,1710813032654,-499.95,0.00015672,2]
[319507624,1710813032665,-886.0,0.00015672,2]
[319507625,1710813032677,-5716.08527799,0.00015672,2]
[319507626,1710813032688,-6601.19999999,0.00015672,2]
[319507627,1710813032715,-72043.41883232,0.00015672,2]
[319507628,1710813032726,-3299.95,0.00015672,2]
[319507629,1710813032737,-2158.3613014,0.00015672,2]
[319507637,1710813037883,-1320.0,0.00015672,2]
[319507638,1710813038058,-3637.59738388,0.00015672,2]
[319507639,1710813038069,-6609.7,0.00015672,2]
[319507640,1710813038347,-32999.99999999,0.00015672,2]
[319507641,1710813038363,-12867.23824847,0.00015672,2]
[319507642,1710813038420,-2974.30000003,0.00015672,2]
[319507643,1710813038435,-28075.69180798,0.00015672,2]
[319507644,1710813038445,-11357.27857957,0.00015673,2]
[319507645,1710813038454,-178.31,0.00015793,2]
[319507646,1710813038463,-2716.7,0.00016027,2]
[319507647,1710813038473,-178.31,0.00016341,2]
[319507648,1710813038482,-222.45,0.00016438,2]
[319507649,1710813038491,-1382.45,0.00016438,2]
[319507650,1710813038501,-370.63,0.00016553,2]
[319507651,1710813038517,-178.31,0.00016889,2]
[319507652,1710813038528,-750.0,0.00017,3]
[319507653,1710813038538,-178.31,0.00017437,2]
[319507654,1710813038547,-221.42,0.00017621,2]
[319507655,1710813038556,-7275.82681666,0.000178,2]
[319507656,1710813038566,-178.31,0.00017985,2]
[319507657,1710813038576,-2500.0,0.000185,2]
[319507658,1710813038586,-181.77291419,0.00018533,2]
[319507659,1710813038596,-2716.7,0.00018766,2]
[319507660,1710813038606,-370.63,0.00018817,2]
[319507661,1710813038616,-800.0,0.00019,3]
[319507662,1710813038626,-1500.0,0.00019,2]
[319507663,1710813038635,-331.04725873,0.00019178,2]
[319507665,1710813038645,-174.99893418,0.00019178,2]
[319507667,1710813038654,-500.0,0.00019178,2]
[319507668,1710813038664,-500.0,0.00019178,2]
[319507670,1710813038673,-285.23959525,0.00019178,2]
[319507672,1710813038682,-412.47673008,0.00019178,2]
[319507674,1710813038691,-158.70564414,0.00019178,2]
[319507676,1710813038700,-413.36946589,0.00019178,2]
[319507678,1710813038709,-500.0,0.00019178,2]
[319507680,1710813038718,-500.0,0.00019178,2]
[319507682,1710813038728,-732.77,0.0001918,2]
[319507684,1710813038737,-732.77,0.0001918,2]
[319507686,1710813038746,-180.0,0.00019288,2]
[319507688,1710813038759,-427.3459969,0.000195,2]
[319507690,1710813038769,-1500.0,0.000195,2]
[319507692,1710813038778,-216.52,0.00019723,2]
[319507694,1710813038787,-1559.48,0.00019726,2]
[319507696,1710813038796,-221.42,0.00019824,2]
[319507698,1710813038806,-1559.48,0.00019974,2]
[319507700,1710813038815,-218.45672814,0.00019999,2]
[319507702,1710813038825,-155.0,0.0002,2]
[319507703,1710813038834,-185.58,0.0002,2]
[319507704,1710813038843,-1500.0,0.0002,2]
[319507705,1710813038852,-1559.48,0.00020222,2]
[319507706,1710813038861,-1559.48,0.0002047,2]
[319507707,1710813038870,-1500.0,0.000205,2]
[319507708,1710813038879,-1559.48,0.00020718,2]
[319507709,1710813038889,-1559.48,0.00020966,2]
[319507710,1710813038897,-208.4529,0.00020994,2]
[319507711,1710813038907,-850.0,0.00021,3]
[319507712,1710813038916,-1500.0,0.00021,2]
[319507713,1710813038936,-395.534622,0.00021,2]
[319507714,1710813038950,-370.63,0.00021081,2]
[319507715,1710813039004,-956.66,0.00021096,2]
[319507716,1710813039018,-254.651,0.00021112,2]
[319507717,1710813039027,-2892.27828485,0.00021177,2]
[319507718,1710813039037,-1559.48,0.00021214,2]
[319507719,1710813039047,-1559.48,0.00021462,2]
[319507720,1710813039057,-425.1639587,0.00021525,7]
[319507721,1710813039068,-152.58,0.00021918,2]
[319507722,1710813039078,-250.0,0.00021918,2]
[319507723,1710813039088,-161.15,0.00021918,10]
[319507724,1710813039098,-3233.16389295,0.00022,2]
[319507725,1710813039108,-221.42,0.00022027,2]
[319507726,1710813039117,-155.73025153,0.00023224,2]
[319507727,1710813039127,-370.63,0.00023345,2]
[319507728,1710813039137,-223.73548136,0.00024,2]
[319507729,1710813039146,-221.42,0.00024229,2]
[319507730,1710813039155,-717.78,0.00024439,2]
[319507731,1710813039165,-732.77,0.0002497,2]
[319507732,1710813039175,-3284.2,0.0002498,2]
[319507733,1710813039185,-5336.6,0.0002498,2]
[319507734,1710813039194,-10290.45,0.0002498,2]
[319507735,1710813039203,-155.13722516,0.00025,2]
[319507736,1710813039213,-155.41742279,0.00025,2]
[319507737,1710813039223,-153.47239536,0.00025007,2]
[319507738,1710813039232,-153.99562794,0.00025138,2]
[319507739,1710813039242,-5405.09671784,0.00025288,2]
[319507740,1710813039252,-303.5,0.00025454,2]
[319507741,1710813039264,-157.0,0.00025479,2]
[319507742,1710813039273,-177.0,0.00025479,2]
[319507743,1710813039282,-169.0,0.00025479,2]
[319507744,1710813039291,-540.96,0.00025582,2]
[319507745,1710813039301,-370.63,0.00025609,2]
[319507746,1710813039310,-540.96,0.00025677,2]
[319507747,1710813039319,-540.96,0.00025771,2]
[319507748,1710813039329,-617.69,0.00025841,2]
[319507749,1710813039338,-540.96,0.00025865,2]
[319507750,1710813039347,-540.96,0.00025959,2]
[319507751,1710813039356,-150.0,0.00025978,2]
[319507752,1710813039367,-425.35,0.00025978,2]
[319507753,1710813039376,-302.72,0.00025978,2]
[319507754,1710813039386,-516.83,0.00025978,2]
[319507755,1710813039396,-356.64,0.00025978,2]
[319507756,1710813039406,-150.0,0.00025978,2]
[319507757,1710813039416,-150.0,0.00025978,2]
[319507758,1710813039426,-150.0,0.00025978,2]
[319507759,1710813039436,-150.0,0.00025978,2]
[319507760,1710813039445,-150.0,0.00025978,2]
[319507761,1710813039456,-516.83,0.00025978,2]
[319507762,1710813039466,-415.02,0.00025978,2]
[319507763,1710813039477,-150.0,0.00025978,2]
[319507764,1710813039487,-150.0,0.00025978,2]
[319507765,1710813039496,-415.02,0.00025978,2]
[319507766,1710813039509,-150.0,0.00025978,2]
[319507767,1710813039519,-516.83,0.00025978,2]
[319507768,1710813039529,-516.83,0.00025978,2]
[319507769,1710813039539,-150.0,0.00025978,2]
[319507770,1710813039549,-415.02,0.00025978,2]
[319507771,1710813039559,-150.0,0.00025978,2]
[319507772,1710813039569,-150.0,0.00025978,2]
[319507773,1710813039579,-150.0,0.00025978,2]
[319507774,1710813039588,-150.0,0.00025978,2]
[319507776,1710813039598,-150.0,0.00025978,2]
[319507777,1710813039608,-516.83,0.00025978,2]
[319507778,1710813039617,-522.07,0.00025978,2]
[319507779,1710813039627,-151.45,0.00025978,2]
[319507780,1710813039637,-226.48,0.00025978,2]
[319507781,1710813039646,-157.73,0.00025978,2]
[319507782,1710813039656,-540.96,0.00026054,2]
[319507783,1710813039666,-1000.0,0.00026077,2]
[319507784,1710813039676,-540.96,0.00026148,2]
[319507785,1710813039685,-540.96,0.00026242,2]
[319507786,1710813039694,-152.84052364,0.00026251,2]
[319507787,1710813039704,-150.89,0.00026252,2]
[319507788,1710813039713,-150.0,0.00026252,2]
[319507789,1710813039723,-150.0,0.00026252,2]
[319507790,1710813039732,-168.16,0.00026291,2]
[319507791,1710813039742,-540.96,0.00026336,2]
[319507792,1710813039751,-540.96,0.00026431,2]
[319507793,1710813039763,-221.42,0.00026432,120]
[319507794,1710813039773,-540.96,0.00026525,2]
[319507795,1710813039782,-540.96,0.00026619,2]
[319507796,1710813039793,-153.99562794,0.00026688,2]
[319507797,1710813039802,-16724.9039,0.00026699,2]
[319507798,1710813039812,-569.8006,0.000267,2]
[319507799,1710813039821,-157.0,0.00026712,2]
[319507800,1710813039830,-178.0,0.00026712,2]
[319507801,1710813039839,-169.0,0.00026712,2]
[319507802,1710813039849,-540.96,0.00026713,2]
[319507803,1710813039858,-2892.27828485,0.0002678,3]
[319507804,1710813039867,-27146.97809865,0.00026799,5]
[319507805,1710813039877,-150.0,0.000268,2]
[319507806,1710813039887,-150.0,0.000268,2]
[319507807,1710813039896,-150.0,0.000268,2]
[319507808,1710813039905,-150.0,0.000268,2]
[319507809,1710813039915,-150.0,0.000268,2]
[319507810,1710813039924,-244.42,0.000268,2]
[319507811,1710813039933,-540.96,0.00026808,2]
[319507812,1710813039942,-540.96,0.00026902,2]
[319507813,1710813039951,-540.96,0.00026996,2]
[319507814,1710813039961,-540.96,0.0002709,2]
[319507815,1710813039970,-156.94779613,0.00027106,2]
[319507816,1710813039980,-153.99562794,0.00027108,2]
[319507817,1710813039989,-165.542598,0.00027159,2]
[319507818,1710813039998,-186.006808,0.00027159,2]
[319507819,1710813040009,-170.436796,0.00027159,2]
[319507820,1710813040018,-602.19289,0.00027159,2]
[319507821,1710813040027,-152.622238,0.00027159,2]
[319507822,1710813040036,-214.12142,0.00027159,2]
[319507823,1710813040045,-540.96,0.00027185,2]
[319507824,1710813040055,-2668.0,0.000272,3]
[319507825,1710813040065,-540.96,0.00027279,2]
[319507826,1710813040075,-153.99562794,0.00027281,2]
[319507827,1710813040084,-540.96,0.00027373,2]
[319507828,1710813040093,-602.19289,0.00027499,2]
[319507829,1710813040103,-165.542598,0.00027838,2]
[319507830,1710813040112,-602.19289,0.00027838,2]
[319507831,1710813040122,-152.622238,0.00027838,2]
[319507832,1710813040131,-370.63,0.00027873,2]
[319507833,1710813040141,-300.0,0.000279,10]
[319507834,1710813040150,-169.0,0.00027945,2]
[319507835,1710813040159,-1000.0,0.00027945,2]
[319507836,1710813040168,-683.0,0.00028,120]
[319507837,1710813040178,-602.19289,0.00028178,2]
[319507838,1710813040187,-165.542598,0.00028517,2]
[319507839,1710813040197,-602.19289,0.00028517,2]
[319507840,1710813040207,-152.622238,0.00028517,2]
[319507841,1710813040217,-800.0,0.00028649,8]
[319507842,1710813040230,-4368.03204661,0.0002868,2]
[319507843,1710813040239,-4368.03204658,0.0002868,2]
[319507844,1710813040249,-4368.03204658,0.0002868,2]
[319507845,1710813040260,-166.44360795,0.00028751,2]
[319507846,1710813040270,-1793.27544663,0.00028776,2]
[319507847,1710813040280,-2204.06111415,0.00028776,2]
[319507848,1710813040290,-1416.77051974,0.00028776,30]
[319507849,1710813040300,-4368.03204658,0.00028796,2]
[319507850,1710813040309,-158.08930467,0.00028855,2]
[319507851,1710813040319,-625.74605049,0.0002889,2]
[319507852,1710813040329,-169.0,0.00029178,2]
[319507853,1710813040339,-2976.33668627,0.00029202,2]
[319507854,1710813040349,-10460.12769467,0.00029202,2]
[319507855,1710813040359,-345.08119838,0.00029202,2]
[319507856,1710813040368,-400.0,0.00029203,2]
[319507857,1710813040378,-235.52507584,0.00029203,2]
[319507858,1710813040387,-3530.18141762,0.00029203,2]
[319507859,1710813040397,-445.96038234,0.00029203,2]
[319507860,1710813040406,-307.89297359,0.00029203,2]
[319507861,1710813040416,-714.79078807,0.00029204,10]
[319507862,1710813040426,-160.23923,0.00029204,2]
[319507863,1710813040436,-295.09206644,0.00029204,2]
[319507864,1710813040446,-205.4108627,0.00029204,2]
[319507865,1710813040459,-276.6115154,0.00029204,2]
[319507866,1710813040468,-166.44360795,0.00029249,2]
[319507867,1710813040479,-1000.0,0.00029337,2]
[319507868,1710813040489,-439.45895503,0.000295,3]
[319507869,1710813040499,-2530.77986182,0.00029505,2]
[319507870,1710813040510,-541.4379595,0.00029505,15]
[319507871,1710813040520,-2630.20140855,0.0002999,2]
[319507872,1710813040530,-238.19360943,0.0003,5]
[319507873,1710813040540,-23616.24783885,0.0003,4]
[319507874,1710813040549,-1098.6591993,0.0003,4]
[319507875,1710813040559,-19222.05911731,0.0003,4]
[319507876,1710813040569,-1924.99830401,0.0003,2]
[319507877,1710813040578,-300.0,0.0003,2]
[319507878,1710813040588,-500.0,0.0003,2]
[319507879,1710813040597,-4290.35979083,0.0003,2]
[319507880,1710813040607,-150.15,0.0003,2]
[319507881,1710813040616,-150.15,0.0003,2]
[319507882,1710813040626,-150.15,0.0003,2]
[319507883,1710813040635,-150.15,0.0003,2]
[319507884,1710813040646,-150.15,0.0003,2]
[319507885,1710813040656,-150.15,0.0003,2]
[319507886,1710813040667,-150.15,0.0003,2]
[319507887,1710813040676,-732.77,0.00030127,2]
[319507888,1710813040686,-370.63,0.00030137,2]
[319507889,1710813040695,-161.15,0.00030137,10]
[319507890,1710813040705,-310.230509,0.00030411,14]
[319507891,1710813040714,-169.0,0.00030411,2]
[319507892,1710813040723,-167.99783779,0.00030541,7]
[319507893,1710813040733,-11788.33884129,0.00030648,2]
[319507894,1710813040743,-185.82,0.00030872,120]
[319507895,1710813040753,-86.88162691,0.00030958,7]
[319507896,1710813040764,-5664.06579359,0.00030958,4]
[319507897,1710813040774,-1593.03756627,0.00030958,4]
[319507898,1710813040787,-223.0120948,0.00030958,4]
[319507899,1710813040796,-185.94037726,0.00030958,14]
[319507900,1710813040808,-187.8324566,0.00030958,4]
[319507901,1710813040817,-367.0,0.00031102,2]
[319507902,1710813040827,-702.0,0.00031102,2]
[319507903,1710813040837,-310.230509,0.00031233,14]
[319507904,1710813040847,-158.18061676,0.0003126,7]
[319507905,1710813040856,-153.47239536,0.0003132,7]
[319507906,1710813040866,-367.0,0.00031423,2]
[319507907,1710813040875,-702.0,0.00031423,2]
[319507908,1710813040885,-482.5,0.00031441,2]
[319507909,1710813040895,-176.55,0.00031644,2]
[319507910,1710813040904,-169.0,0.00031644,2]
[319507911,1710813040914,-367.0,0.00031743,2]
[319507912,1710813040924,-702.0,0.00031743,2]
[319507913,1710813040933,-200.0,0.00031805,2]
[319507914,1710813040942,-150.15,0.00031805,2]
[319507915,1710813040952,-1381.991,0.00031815,2]
[319507916,1710813040961,-2568.551,0.00031815,2]
[319507917,1710813040970,-959.0,0.00031815,2]
[319507918,1710813040980,-539.896,0.00031815,2]
[319507919,1710813040989,-1226.0,0.00031815,2]
[319507920,1710813040998,-457.0,0.00031815,2]
[319507921,1710813041009,-1264.0,0.00031815,2]
[319507922,1710813041018,-1250.0,0.00031815,2]
[319507923,1710813041027,-278.0,0.00031815,2]
[319507924,1710813041036,-605.209,0.00031815,2]
[319507925,1710813041045,-433.488,0.00031815,2]
[319507926,1710813041054,-358.329,0.00031815,2]
[319507927,1710813041064,-1611.828,0.00031815,2]
[319507928,1710813041074,-2419.0,0.00031815,2]
[319507929,1710813041083,-1459.0,0.00031815,2]
[319507930,1710813041092,-1628.14,0.00031815,2]
[319507931,1710813041101,-214.0,0.00031815,2]
[319507933,1710813041110,-2445.0,0.00031815,2]
[319507935,1710813041119,-150.814,0.00031815,2]
[319507937,1710813041128,-4782.191,0.00031815,2]
[319507938,1710813041137,-151.0,0.00031815,2]
[319507939,1710813041147,-150.0,0.00031815,2]
[319507940,1710813041156,-150.0,0.00031815,2]
[319507942,1710813041165,-42890.0,0.00031815,2]
[319507943,1710813041174,-5690.315,0.00031815,2]
[319507944,1710813041184,-150.0,0.00031815,2]
[319507945,1710813041193,-1048.272,0.00031815,2]
[319507946,1710813041203,-216.576,0.00031815,2]
[319507947,1710813041212,-154.517,0.00031815,2]
[319507948,1710813041221,-151.07,0.00031815,2]
[319507949,1710813041230,-150.137,0.00031815,2]
[319507950,1710813041240,-150.15,0.00031888,2]
[319507951,1710813041249,-3421.2601,0.00031898,2]
[319507952,1710813041259,-500.0,0.00032,120]
[319507953,1710813041268,-310.230509,0.00032055,14]
[319507954,1710813041278,-531.32093646,0.00032064,2]
[319507955,1710813041288,-367.0,0.00032064,2]
[319507956,1710813041297,-702.0,0.00032064,2]
[319507957,1710813041311,-1749.97946538,0.00032064,2]
[319507958,1710813041322,-956.66,0.00032329,2]
[319507959,1710813041332,-2892.27828485,0.00032384,6]
[319507960,1710813041342,-367.0,0.00032385,2]
[319507961,1710813041351,-702.0,0.00032385,2]
[319507962,1710813041361,-370.63,0.000324,2]
[319507963,1710813041370,-1000.0,0.00032596,2]
[319507964,1710813041380,-367.0,0.00032705,2]
[319507965,1710813041390,-702.0,0.00032705,2]
[319507966,1710813041400,-153.47239536,0.00032775,7]
[319507967,1710813041410,-174.75,0.00032868,2]
[319507968,1710813041419,-172.0,0.00032876,2]
[319507969,1710813041429,-310.230509,0.00032877,14]
[319507970,1710813041695,-185.58,0.00032877,2]
[319507971,1710813041709,-155.68638588,0.00032895,7]
[319507972,1710813041719,-367.0,0.00033026,2]
[319507973,1710813041728,-702.0,0.00033026,2]
[319507974,1710813041737,-4368.03204658,0.00033204,2]
[319507975,1710813041747,-206.57054581,0.00033298,2]
[319507976,1710813041757,-201.514054,0.00033383,10]
[319507977,1710813041769,-158.18061676,0.00033423,7]
[319507978,1710813041778,-622.51096109,0.00033436,4]
[319507979,1710813041787,-922.7,0.00033441,2]
[319507980,1710813041796,-408.52,0.00033441,2]
[319507981,1710813041806,-922.7,0.00033441,2]
[319507982,1710813041815,-408.52,0.00033441,2]
[319507983,1710813041824,-408.52,0.00033441,2]
[319507984,1710813041833,-151.55,0.00033578,2]
[319507985,1710813041842,-150.0,0.00033578,2]
[319507986,1710813041851,-346.87,0.00033578,2]
[319507987,1710813041861,-150.0,0.00033578,2]
[319507988,1710813041870,-150.0,0.00033578,2]
[319507989,1710813041880,-346.87,0.00033578,2]
[319507990,1710813041890,-150.0,0.00033578,2]
[319507991,1710813041904,-346.87,0.00033578,2]
[319507992,1710813041912,-150.0,0.00033578,2]
[319507993,1710813041922,-150.0,0.00033578,2]
[319507994,1710813041931,-348.68,0.00033578,2]
[319507995,1710813041939,-150.0,0.00033578,2]
[319507996,1710813041948,-153.92,0.00033578,2]
[319507997,1710813041960,-150.0,0.00033578,2]
[319507998,1710813041969,-150.0,0.00033578,2]
[319507999,1710813041978,-158.30379709,0.00033689,7]
[319508000,1710813041987,-310.230509,0.00033699,14]
[319508001,1710813041997,-153.99562794,0.00033882,7]
[319508002,1710813042006,-310.230509,0.00034521,14]
[319508003,1710813042016,-150.0,0.00034548,10]
[319508004,1710813042025,-370.63,0.00034664,2]
[319508005,1710813042034,-10018.7872,0.00034715,120]
[319508006,1710813042043,-2887.6318923,0.000348,2]
[319508007,1710813042053,-1379.0,0.00034815,2]
[319508008,1710813042062,-2561.0,0.00034815,2]
[319508009,1710813042072,-959.0,0.00034815,2]
[319508010,1710813042081,-536.0,0.00034815,2]
[319508011,1710813042090,-384.969,0.00034815,2]
[319508012,1710813042100,-1076.599,0.00034815,2]
[319508013,1710813042110,-1250.0,0.00034815,2]
[319508014,1710813042121,-2215.474,0.00034815,2]
[319508015,1710813042130,-267.98,0.00034815,2]
[319508016,1710813042139,-1623.0,0.00034815,2]
[319508017,1710813042148,-213.0,0.00034815,2]
[319508018,1710813042157,-1630.714,0.00034815,2]
[319508019,1710813042166,-4763.0,0.00034815,2]
[319508020,1710813042175,-150.0,0.00034815,2]
[319508021,1710813042185,-150.0,0.00034815,2]
[319508022,1710813042194,-152.055,0.00034815,2]
[319508023,1710813042202,-150.0,0.00034815,2]
[319508024,1710813042212,-150.0,0.00034815,2]
[319508025,1710813042222,-153.47239536,0.00034821,7]
[319508026,1710813042231,-200.0,0.0003496,10]
[319508027,1710813042240,-800.0,0.0003496,10]
[319508028,1710813042250,-200.0,0.0003496,10]
[319508029,1710813042261,-500.0,0.0003496,10]
[319508030,1710813042270,-200.0,0.0003496,10]
[319508031,1710813042279,-1013.66,0.00035,2]
[319508032,1710813042288,-158.18061676,0.0003509,7]
[319508033,1710813042298,-1257.0,0.00035142,5]
[319508034,1710813042307,-153.47239536,0.00035263,7]
[319508035,1710813042317,-310.230509,0.00035342,14]
[319508036,1710813042326,-153.47239536,0.0003568,7]
[319508037,1710813042336,-151.84501802,0.00035756,2]
[319508038,1710813042345,-1013.66,0.00035825,2]
[319508039,1710813042355,-1000.0,0.00035856,2]
[319508040,1710813042365,-185.82,0.00036017,120]
[319508041,1710813042374,-153.47239536,0.000361,7]
[319508042,1710813042384,-310.230509,0.00036164,14]
[319508043,1710813042393,-1150.938227,0.0003665,2]
[319508044,1710813042403,-180.78524758,0.000369,2]
[319508045,1710813042413,-180.78524758,0.000369,2]
[319508046,1710813042422,-370.63,0.00036928,2]
[319508047,1710813042432,-166.44360795,0.00036946,7]
[319508048,1710813042441,-310.230509,0.00036986,14]
[319508049,1710813042453,-775.0,0.000371,5]
[319508050,1710813042463,-1913.64152384,0.0003737,2]
[319508051,1710813042473,-161.031911,0.00037498,20]
[319508052,1710813042483,-161.031911,0.00037498,14]
[319508053,1710813042493,-155.48552858,0.00037547,7]
[319508054,1710813042502,-150.15,0.00037601,2]
[319508056,1710813042515,-4368.03204658,0.00037611,2]
[319508057,1710813042525,-153.47239544,0.00037667,7]
[319508058,1710813042535,-161.031911,0.00037798,14]
[319508059,1710813042545,-161.031911,0.00037798,20]
[319508060,1710813042554,-310.230509,0.00037808,14]
[319508062,1710813042563,-308.291,0.00037815,2]
[319508065,1710813042573,-150.0,0.00037815,2]
[319508066,1710813042582,-157.02188943,0.00037943,7]
[319508067,1710813042591,-2892.27828485,0.00037988,8]
[319508068,1710813042601,-175.87378785,0.00038135,7]
[319508069,1710813042610,-677.0,0.00038186,28]
[319508070,1710813042620,-161.031911,0.00038198,14]
[319508071,1710813042629,-161.031911,0.00038198,21]
[319508072,1710813042639,-161.15,0.00038356,10]
[319508073,1710813042649,-161.031911,0.00038498,14]
[319508074,1710813042659,-161.031911,0.00038498,21]
[319508075,1710813042669,-1321.26959247,0.00038548,4]
[319508076,1710813042679,-393.41323241,0.00038548,4]
[319508077,1710813042689,-452.01786625,0.00038548,2]
[319508078,1710813042699,-236.45316327,0.00038549,2]
[319508079,1710813042708,-1364.66026115,0.0003855,4]
[319508080,1710813042718,-4628.0,0.00038554,68]
[319508081,1710813042728,-155.48552858,0.000387,7]
[319508082,1710813042737,-161.031911,0.00038798,21]
[319508083,1710813042749,-161.031911,0.00038798,14]
[319508086,1710813042765,-732.77,0.0003889,2]
[319508088,1710813042775,-5777.46323199,0.000389,15]
[319508089,1710813042785,-600.0,0.000389,14]
[319508091,1710813042794,-677.0,0.00038999,28]
[319508092,1710813042804,-13820.6836158,0.00039039,12]
[319508093,1710813042813,-1000.0,0.00039115,2]
[319508096,1710813042823,-190.15830574,0.00039139,12]
[319508099,1710813042833,-370.63,0.00039192,2]
[319508101,1710813042843,-161.031911,0.00039198,21]
[319508103,1710813042852,-161.031911,0.00039198,14]
[319508105,1710813042862,-732.77,0.00039229,2]
[319508107,1710813042871,-150.15,0.00039229,2]
[319508109,1710813042881,-150.15,0.00039229,2]
[319508111,1710813042890,-150.15,0.00039229,2]
[319508112,1710813042900,-209396.96681456,0.00039239,2]
[319508113,1710813042916,-1229.95382721,0.00039239,2]
[319508114,1710813042951,-3994.12981404,0.00039239,2]
[319508115,1710813042963,-362.662217,0.00039239,2]
[319508116,1710813042979,-7036.78301158,0.00039239,2]
[319508153,1710813043687,-181.63710678,0.00015671,2]
[319508155,1710813043696,-383.38666516,0.00039239,2]
[319508157,1710813043708,-783.25753,0.00039239,2]
[319508159,1710813043719,-268.692,0.00039239,2]
[319508163,1710813043745,-853.7354778,0.00039239,2]
[319508165,1710813043756,-355.85243481,0.00039239,2]
[319508168,1710813043769,-5297.15778538,0.00039239,2]
[319508170,1710813043780,-15037.42242246,0.00039239,2]
[319508172,1710813043789,-360.2904,0.00039239,2]
[319508174,1710813043798,-150.15,0.00039328,2]
[319508176,1710813043808,-272.80698559,0.00039337,4]
[319508178,1710813043817,-4497.07853721,0.00039337,4]
[319508180,1710813043826,-341.23781278,0.00039337,4]
[319508182,1710813043835,-453.14881695,0.00039337,4]
[319508184,1710813043845,-700.0,0.00039337,4]
[319508186,1710813043854,-821.59733765,0.00039338,4]
[319508188,1710813043863,-20742.96757346,0.00039338,4]
[319508190,1710813043872,-540.15189369,0.0003934,4]
[319508192,1710813043881,-332.75868593,0.0003934,14]
[319508194,1710813043890,-510.7456261,0.0003934,17]
[319508196,1710813043899,-161.031911,0.00039498,21]
[319508198,1710813043908,-157.031911,0.00039498,14]
[319508200,1710813043917,-151.031911,0.00039798,21]
[319508202,1710813043926,-151.031911,0.00039798,14]
[319508204,1710813043935,-20000.0,0.000398,120]
[319508206,1710813043944,-677.0,0.00039811,28]
[319508208,1710813043953,-175.21565854,0.00039898,2]
[319508210,1710813043962,-7500.0,0.00039898,2]
[319508212,1710813043971,-900.0,0.000399,14]
[319508214,1710813043981,-433.56755212,0.000399,2]
[319508216,1710813043989,-152.59,0.0003997,15]
[319508218,1710813043999,-150.5,0.0003998,15]
[319508220,1710813044008,-732.77,0.00039988,2]
[319508222,1710813044022,-150.15,0.00039988,2]
[319508224,1710813044031,-153.07,0.0003999,15]
[319508226,1710813044041,-152.69,0.0003999,15]
[319508228,1710813044050,-151.48,0.0003999,15]
[319508230,1710813044059,-154.38,0.0003999,15]
[319508232,1710813044068,-150.89,0.0003999,15]
[319508234,1710813044076,-150.5,0.0003999,15]
[319508236,1710813044086,-4705.86620174,0.00039998,4]
[319508238,1710813044095,-248.23590984,0.00039998,4]
[319508240,1710813044104,-318.97686466,0.00039998,4]
[319508242,1710813044113,-845.15889792,0.00039998,4]
[319508244,1710813044123,-343.62741318,0.00039998,4]
[319508247,1710813044134,-1238.00502411,0.00039998,4]
[319508249,1710813044145,-155.11548217,0.00039998,4]
[319508251,1710813044155,-1398.88573363,0.00039998,30]